[Event "Kwalificatie NJK A Groningen"]
[Site "Hoogkerk, Netherlands"]
[Date "2023.02.18"]
[Round "1.7"]
[White "Alvares, Thomas"]
[Black "Bos, Eric"]
[Result "1-0"]
[TimeControl "55 min. + 10 sec./zet"]
[WhiteElo "1855"]
[BlackElo "1596"]

1. e4 {[%clk 00:55:17]} {[%emt 00:00:03]} c5 {[%clk 00:55:16]} {[%emt
00:00:05]} 2. Nf3 {[%clk 00:55:11]} {[%emt 00:00:16]} d6 {[%clk 00:55:24]}
{[%emt 00:00:02]} 3. d4 {[%clk 00:55:12]} {[%emt 00:00:08]} cxd4 {[%clk
00:55:33]} {[%emt 00:00:02]} 4. Nxd4 {[%clk 00:55:11]} {[%emt 00:00:11]} Nf6
{[%clk 00:55:36]} {[%emt 00:00:06]} 5. Nc3 {[%clk 00:55:14]} {[%emt 00:00:07]}
a6 {[%clk 00:55:32]} {[%emt 00:00:15]} 6. Bg5 {[%clk 00:54:59]} {[%emt
00:00:25]} e6 {[%clk 00:55:33]} {[%emt 00:00:09]} 7. f4 {[%clk 00:55:03]}
{[%emt 00:00:06]} b5 {[%clk 00:54:56]} {[%emt 00:00:47]} 8. e5 {[%clk
00:55:03]} {[%emt 00:00:10]} dxe5 {[%clk 00:55:00]} {[%emt 00:00:06]} 9. fxe5
{[%clk 00:55:07]} {[%emt 00:00:05]} Qc7 {[%clk 00:54:42]} {[%emt 00:00:29]} 10.
exf6 {[%clk 00:55:11]} {[%emt 00:00:06]} Qe5+ {[%clk 00:54:49]} {[%emt
00:00:02]} 11. Be2 {[%clk 00:55:14]} {[%emt 00:00:08]} Qxg5 {[%clk 00:54:41]}
{[%emt 00:00:18]} 12. O-O {[%clk 00:55:18]} {[%emt 00:00:06]} Bc5 {[%clk
00:46:06]} {[%emt 00:08:44]} 13. Kh1 {[%clk 00:54:53]} {[%emt 00:00:36]} Qe5
{[%clk 00:41:06]} {[%emt 00:05:10]} 14. fxg7 {[%clk 00:42:53]} {[%emt
00:12:09]} Qxg7 {[%clk 00:40:01]} {[%emt 00:01:15]} 15. Bf3 {[%clk 00:41:17]}
{[%emt 00:01:47]} Ra7 {[%clk 00:39:45]} {[%emt 00:00:26]} 16. Nde2 {[%clk
00:37:23]} {[%emt 00:04:03]} Rd7 {[%clk 00:36:13]} {[%emt 00:03:42]} 17. Qe1
{[%clk 00:36:56]} {[%emt 00:00:37]} Bb7 {[%clk 00:34:19]} {[%emt 00:02:04]} 18.
Bxb7 {[%clk 00:32:05]} {[%emt 00:05:02]} Rxb7 {[%clk 00:34:20]} {[%emt
00:00:08]} 19. Ng3 {[%clk 00:30:49]} {[%emt 00:01:26]} Rg8 {[%clk 00:22:42]}
{[%emt 00:11:48]} 20. Qe4 {[%clk 00:29:43]} {[%emt 00:01:16]} Re7 {[%clk
00:17:35]} {[%emt 00:05:16]} 21. Nh5 {[%clk 00:26:54]} {[%emt 00:02:59]} Qh6
{[%clk 00:11:30]} {[%emt 00:06:16]} 22. Nf6+ {[%clk 00:26:04]} {[%emt
00:01:00]} Kf8 {[%clk 00:11:39]} {[%emt 00:00:01]} 23. Nxg8 {[%clk 00:22:53]}
{[%emt 00:03:22]} Kxg8 {[%clk 00:11:47]} {[%emt 00:00:02]} 24. Rad1 {[%clk
00:22:36]} {[%emt 00:00:26]} 1-0

[Event "Kwalificatie NJK A Groningen"]
[Site "Hoogkerk, Netherlands"]
[Date "2023.02.18"]
[Round "1.8"]
[White "Jovanovic, Luka"]
[Black "Den Heijer, Rolinde"]
[Result "0-1"]
[TimeControl "55 min. + 10 sec./zet"]
[WhiteElo "1593"]
[BlackElo "1831"]

1. d4 {[%clk 00:55:01]} {[%emt 00:00:18]} d5 {[%clk 00:55:15]} {[%emt
00:00:05]} 2. c4 {[%clk 00:55:08]} {[%emt 00:00:03]} e6 {[%clk 00:55:21]}
{[%emt 00:00:04]} 3. Nc3 {[%clk 00:55:16]} {[%emt 00:00:02]} c5 {[%clk
00:55:27]} {[%emt 00:00:05]} 4. cxd5 {[%clk 00:55:09]} {[%emt 00:00:17]} exd5
{[%clk 00:55:30]} {[%emt 00:00:06]} 5. e3 {[%clk 00:53:40]} {[%emt 00:01:39]}
Nf6 {[%clk 00:55:21]} {[%emt 00:00:20]} 6. Nf3 {[%clk 00:53:19]} {[%emt
00:00:31]} Nc6 {[%clk 00:54:58]} {[%emt 00:00:33]} 7. Be2 {[%clk 00:52:57]}
{[%emt 00:00:31]} c4 {[%clk 00:54:03]} {[%emt 00:01:05]} 8. O-O {[%clk
00:52:38]} {[%emt 00:00:29]} Bb4 {[%clk 00:53:49]} {[%emt 00:00:24]} 9. a3
{[%clk 00:51:33]} {[%emt 00:01:16]} Bxc3 {[%clk 00:53:11]} {[%emt 00:00:48]} 10.
bxc3 {[%clk 00:51:36]} {[%emt 00:00:07]} Ne4 {[%clk 00:51:25]} {[%emt
00:01:55]} 11. Bd2 {[%clk 00:45:16]} {[%emt 00:06:31]} O-O {[%clk 00:49:50]}
{[%emt 00:01:45]} 12. Qc1 {[%clk 00:42:51]} {[%emt 00:02:34]} Bf5 {[%clk
00:43:57]} {[%emt 00:06:04]} 13. Bd1 {[%clk 00:41:30]} {[%emt 00:01:30]} Na5
{[%clk 00:40:12]} {[%emt 00:03:56]} 14. h3 {[%clk 00:39:04]} {[%emt 00:02:36]}
Rc8 {[%clk 00:39:11]} {[%emt 00:01:11]} 15. Qb2 {[%clk 00:38:24]} {[%emt
00:00:49]} Rc6 {[%clk 00:36:23]} {[%emt 00:02:58]} 16. Rb1 {[%clk 00:37:31]}
{[%emt 00:01:03]} Nxd2 {[%clk 00:32:20]} {[%emt 00:04:14]} 17. Nxd2 {[%clk
00:36:42]} {[%emt 00:00:59]} Rb6 {[%clk 00:31:31]} {[%emt 00:00:58]} 18. Qc1
{[%clk 00:35:55]} {[%emt 00:00:57]} Bxb1 {[%clk 00:30:52]} {[%emt 00:00:50]} 19.
Nxb1 {[%clk 00:36:02]} {[%emt 00:00:03]} Qg5 {[%clk 00:30:04]} {[%emt
00:00:57]} 20. Bf3 {[%clk 00:35:27]} {[%emt 00:00:46]} Nb3 {[%clk 00:29:13]}
{[%emt 00:01:01]} 21. Qc2 {[%clk 00:35:13]} {[%emt 00:00:23]} Rd8 {[%clk
00:29:02]} {[%emt 00:00:21]} 22. e4 {[%clk 00:34:59]} {[%emt 00:00:25]} dxe4
{[%clk 00:28:11]} {[%emt 00:01:01]} 23. Qxe4 {[%clk 00:34:37]} {[%emt
00:00:32]} h6 {[%clk 00:25:36]} {[%emt 00:02:44]} 24. Rd1 {[%clk 00:33:44]}
{[%emt 00:01:04]} Na5 {[%clk 00:23:34]} {[%emt 00:02:11]} 25. d5 {[%clk
00:33:39]} {[%emt 00:00:16]} Rf6 {[%clk 00:22:41]} {[%emt 00:01:02]} 26. a4
{[%clk 00:33:11]} {[%emt 00:00:38]} Rf4 {[%clk 00:22:19]} {[%emt 00:00:32]} 27.
Qe2 {[%clk 00:32:53]} {[%emt 00:00:28]} Nb3 {[%clk 00:21:45]} {[%emt 00:00:45]}
28. Na3 {[%clk 00:32:37]} {[%emt 00:00:27]} Nc5 {[%clk 00:20:48]} {[%emt
00:01:06]} 29. Nxc4 {[%clk 00:32:01]} {[%emt 00:00:46]} Nxa4 {[%clk 00:20:15]}
{[%emt 00:00:42]} 30. Qd3 {[%clk 00:30:24]} {[%emt 00:01:47]} b5 {[%clk
00:18:17]} {[%emt 00:02:09]} 31. Nd2 {[%clk 00:29:10]} {[%emt 00:01:24]} Nb2
{[%clk 00:17:53]} {[%emt 00:00:33]} 32. Qxb5 {[%clk 00:29:09]} {[%emt
00:00:11]} Nxd1 {[%clk 00:17:32]} {[%emt 00:00:30]} 33. Bxd1 {[%clk 00:28:54]}
{[%emt 00:00:26]} Qxd5 {[%clk 00:17:17]} {[%emt 00:00:26]} 0-1

[Event "Kwalificatie NJK A Groningen"]
[Site "Hoogkerk, Netherlands"]
[Date "2023.02.18"]
[Round "1.9"]
[White "Knol, DaniÃ«l"]
[Black "Visser, Berend"]
[Result "1-0"]
[TimeControl "55 min. + 10 sec./zet"]
[WhiteElo "1807"]
[BlackElo "1525"]

1. e4 {[%clk 00:55:19]} c5 {[%clk 00:55:16]} 2. c3 {[%clk 00:55:25]} Nf6 {[%clk
00:55:23]} 3. e5 {[%clk 00:55:31]} Nd5 {[%clk 00:55:29]} 4. Nf3 {[%clk
00:55:36]} Nc6 {[%clk 00:55:16]} 5. d4 {[%clk 00:55:14]} cxd4 {[%clk 00:55:22]}
6. cxd4 {[%clk 00:55:16]} g6 {[%clk 00:53:20]} 7. Bc4 {[%clk 00:54:55]} Nb6
{[%clk 00:53:24]} 8. Bb3 {[%clk 00:54:32]} Bg7 {[%clk 00:53:29]} 9. O-O O-O
{[%clk 00:53:29]} 10. Qe2 {[%clk 00:51:20]} e6 {[%clk 00:46:45]} 11. Nc3 {[%clk
00:50:56]} d6 {[%clk 00:44:35]} 12. Rd1 {[%clk 00:50:09]} a6 {[%clk 00:37:47]}
13. Ne4 {[%clk 00:40:18]} dxe5 {[%clk 00:30:52]} 14. dxe5 {[%clk 00:40:27]} Qe7
{[%clk 00:30:37]} 15. Bg5 {[%clk 00:39:13]} Qc7 {[%clk 00:29:15]} 16. Nf6+
{[%clk 00:31:36]} Kh8 {[%clk 00:23:25]} 17. Qe4 {[%clk 00:28:51]} Nd7 {[%clk
00:16:11]} 18. Qh4 {[%clk 00:24:03]} h5 {[%clk 00:13:41]} 19. Nxd7 {[%clk
00:18:50]} Bxd7 {[%clk 00:13:39]} 20. Bf6 {[%clk 00:18:51]} Bxf6 {[%clk
00:08:41]} {[%emt 00:00:11]} 21. exf6 {[%clk 00:17:17]} {[%emt 00:01:44]} e5
{[%clk 00:05:32]} {[%emt 00:03:20]} 22. Qg5 {[%clk 00:16:38]} {[%emt 00:00:49]}
Kh7 {[%clk 00:05:35]} {[%emt 00:00:06]} 23. Bc2 {[%clk 00:16:14]} {[%emt
00:00:34]} Bg4 {[%clk 00:03:48]} {[%emt 00:01:57]} 24. h3 {[%clk 00:09:44]}
{[%emt 00:06:40]} Bxf3 {[%clk 00:03:54]} {[%emt 00:00:04]} 25. gxf3 {[%clk
00:09:53]} Rh8 {[%clk 00:03:54]} {[%emt 00:00:10]} 26. Qxh5+ {[%clk 00:08:52]}
{[%emt 00:01:12]} Kg8 {[%clk 00:03:59]} {[%emt 00:00:05]} 27. Qg4 {[%clk
00:08:59]} {[%emt 00:00:02]} Qc8 {[%clk 00:03:17]} {[%emt 00:00:52]} 28. Rd7
{[%clk 00:08:09]} {[%emt 00:01:00]} Rh6 {[%emt 00:00:59]} 29. Bb3 {[%clk
00:07:54]} Rh7 {[%clk 00:02:37]} {[%emt 00:00:26]} 30. Qxg6+ {[%clk 00:07:29]}
{[%emt 00:00:35]} Kh8 {[%clk 00:02:08]} {[%emt 00:00:39]} 31. Rxf7 {[%clk
00:06:11]} {[%emt 00:01:28]} Qxh3 {[%clk 00:01:52]} {[%emt 00:00:26]} 32. Rxh7+
{[%clk 00:04:23]} {[%emt 00:01:57]} Qxh7 {[%clk 00:01:55]} {[%emt 00:00:08]} 33.
Qxh7+ {[%clk 00:04:20]} {[%emt 00:00:13]} Kxh7 {[%clk 00:02:00]} {[%emt
00:00:06]} 34. Rd1 {[%clk 00:03:51]} {[%emt 00:00:39]} Nd4 {[%clk 00:01:59]}
{[%emt 00:00:10]} 35. Bd5 {[%clk 00:03:47]} {[%emt 00:00:14]} Rb8 {[%clk
00:01:21]} {[%emt 00:00:48]} 36. Re1 {[%clk 00:03:22]} {[%emt 00:00:35]} Kg6
{[%clk 00:00:51]} {[%emt 00:00:39]} 37. f7 {[%clk 00:03:10]} {[%emt 00:00:22]}
Kf6 {[%clk 00:00:50]} {[%emt 00:00:11]} 38. f4 {[%clk 00:03:04]} {[%emt
00:00:17]} exf4 {[%clk 00:00:47]} {[%emt 00:00:13]} 39. Re8 {[%clk 00:03:07]}
{[%emt 00:00:07]} Ne2+ {[%clk 00:00:33]} {[%emt 00:00:24]} 40. Kh2 {[%clk
00:02:52]} {[%emt 00:00:25]} 1-0

[Event "Kwalificatie NJK A Groningen"]
[Site "Hoogkerk, Netherlands"]
[Date "2023.02.18"]
[Round "1.10"]
[White "Veldhuyzen, Ywein"]
[Black "Aarts, Joaquin"]
[Result "0-1"]
[TimeControl "55 min. + 10 sec./zet"]
[WhiteElo "1437"]
[BlackElo "1804"]

1. d4 {[%clk 00:55:18]} {[%emt 00:00:01]} Nf6 {[%clk 00:55:15]} {[%emt
00:00:06]} 2. c4 {[%clk 00:55:24]} {[%emt 00:00:04]} e6 {[%clk 00:55:21]}
{[%emt 00:00:04]} 3. Nf3 {[%clk 00:55:25]} {[%emt 00:00:08]} d5 {[%clk
00:55:28]} {[%emt 00:00:03]} 4. Nc3 {[%clk 00:55:28]} {[%emt 00:00:07]} dxc4
{[%clk 00:55:35]} {[%emt 00:00:04]} 5. Bg5 {[%clk 00:55:19]} {[%emt 00:00:18]}
a6 {[%clk 00:55:24]} {[%emt 00:00:22]} 6. e4 {[%clk 00:55:18]} {[%emt
00:00:10]} b5 {[%clk 00:54:11]} {[%emt 00:01:24]} 7. e5 {[%clk 00:53:42]}
{[%emt 00:01:46]} h6 {[%clk 00:54:08]} {[%emt 00:00:12]} 8. Bxf6 {[%clk
00:53:40]} {[%emt 00:00:13]} gxf6 {[%clk 00:54:08]} {[%emt 00:00:10]} 9. g3
{[%clk 00:53:38]} {[%emt 00:00:12]} Bb7 {[%clk 00:53:34]} {[%emt 00:00:44]} 10.
Bg2 {[%clk 00:53:36]} {[%emt 00:00:11]} c5 {[%clk 00:47:35]} {[%emt 00:06:10]}
11. exf6 {[%clk 00:51:22]} {[%emt 00:02:23]} cxd4 {[%clk 00:47:20]} {[%emt
00:00:25]} 12. Ne2 {[%clk 00:47:35]} {[%emt 00:03:58]} e5 {[%clk 00:41:30]}
{[%emt 00:06:00]} 13. O-O {[%clk 00:40:25]} {[%emt 00:07:19]} Qxf6 {[%clk
00:37:10]} {[%emt 00:04:31]} 14. Nc1 {[%clk 00:40:27]} {[%emt 00:00:08]} Nd7
{[%clk 00:36:21]} {[%emt 00:00:58]} 15. Re1 {[%clk 00:37:54]} {[%emt 00:02:43]}
O-O-O {[%clk 00:36:01]} {[%emt 00:00:31]} 16. a3 {[%clk 00:33:22]} {[%emt
00:04:42]} Bc5 {[%clk 00:33:15]} {[%emt 00:02:55]} 17. b4 {[%clk 00:30:13]}
{[%emt 00:03:19]} Bb6 {[%clk 00:32:44]} {[%emt 00:00:41]} 18. a4 {[%clk
00:27:51]} {[%emt 00:02:33]} e4 {[%clk 00:28:32]} {[%emt 00:04:22]} 19. Nh4
{[%clk 00:27:18]} {[%emt 00:00:42]} d3 {[%clk 00:28:07]} {[%emt 00:00:36]} 20.
Ra2 {[%clk 00:26:45]} {[%emt 00:00:43]} Rhe8 {[%clk 00:27:42]} {[%emt
00:00:35]} 21. axb5 {[%clk 00:23:29]} {[%emt 00:03:25]} axb5 {[%clk 00:27:39]}
{[%emt 00:00:14]} 22. Qh5 {[%clk 00:23:27]} {[%emt 00:00:11]} Re5 {[%clk
00:26:17]} {[%emt 00:01:32]} 23. Qg4 {[%clk 00:22:32]} {[%emt 00:01:05]} e3
{[%emt 00:10:09]} 0-1

[Event "Kwalificatie NJK A Groningen"]
[Site "Hoogkerk, Netherlands"]
[Date "2023.02.18"]
[Round "2.1"]
[White "Aarts, Joaquin"]
[Black "Slagboom, Leandro"]
[Result "0-1"]
[TimeControl "55 min. + 10 sec./zet"]
[WhiteElo "1804"]
[BlackElo "2201"]

1. d4 {[%clk 00:55:18]} {[%emt 00:00:01]} d5 {[%clk 00:55:13]} {[%emt
00:00:07]} 2. c4 {[%clk 00:55:23]} {[%emt 00:00:06]} e6 {[%clk 00:55:11]}
{[%emt 00:00:11]} 3. Nc3 {[%clk 00:55:27]} {[%emt 00:00:07]} Nf6 {[%clk
00:55:15]} {[%emt 00:00:06]} 4. cxd5 {[%clk 00:55:32]} {[%emt 00:00:05]} exd5
{[%clk 00:55:18]} {[%emt 00:00:06]} 5. Bg5 {[%clk 00:55:33]} {[%emt 00:00:09]}
c6 {[%clk 00:55:10]} {[%emt 00:00:18]} 6. e3 {[%clk 00:55:39]} {[%emt
00:00:04]} Be6 {[%clk 00:55:13]} {[%emt 00:00:07]} 7. Bd3 {[%clk 00:55:42]}
{[%emt 00:00:07]} Nbd7 {[%clk 00:55:17]} {[%emt 00:00:06]} 8. Nge2 {[%clk
00:54:55]} {[%emt 00:00:57]} h6 {[%clk 00:55:13]} {[%emt 00:00:14]} 9. Bh4
{[%clk 00:55:01]} {[%emt 00:00:05]} g5 {[%clk 00:55:08]} {[%emt 00:00:14]} 10.
Bg3 {[%clk 00:55:08]} {[%emt 00:00:04]} Nh5 {[%clk 00:55:11]} {[%emt 00:00:06]}
11. Qc2 {[%clk 00:46:53]} {[%emt 00:08:25]} Nxg3 {[%clk 00:55:14]} {[%emt
00:00:07]} 12. Nxg3 {[%clk 00:46:54]} {[%emt 00:00:09]} h5 {[%clk 00:55:16]}
{[%emt 00:00:08]} 13. Nf5 {[%clk 00:44:36]} {[%emt 00:02:29]} Qf6 {[%clk
00:52:46]} {[%emt 00:02:39]} 14. a4 {[%clk 00:36:34]} {[%emt 00:08:12]} a5
{[%clk 00:50:04]} {[%emt 00:02:53]} 15. Ne2 {[%clk 00:34:33]} {[%emt 00:02:11]}
Bb4+ {[%clk 00:49:05]} {[%emt 00:01:08]} 16. Kf1 {[%clk 00:33:00]} {[%emt
00:01:43]} h4 {[%clk 00:47:18]} {[%emt 00:01:57]} 17. f4 {[%clk 00:31:48]}
{[%emt 00:01:22]} O-O-O {[%clk 00:45:22]} {[%emt 00:02:06]} 18. Kf2 {[%clk
00:30:05]} {[%emt 00:01:54]} gxf4 {[%clk 00:43:28]} {[%emt 00:02:04]} 19. Nxf4
{[%clk 00:29:59]} {[%emt 00:00:16]} Kb8 {[%clk 00:41:57]} {[%emt 00:01:41]} 20.
g3 {[%clk 00:21:20]} {[%emt 00:08:49]} c5 {[%clk 00:39:16]} {[%emt 00:02:51]}
21. dxc5 {[%clk 00:19:23]} {[%emt 00:02:06]} Bxc5 {[%clk 00:33:43]} {[%emt
00:05:42]} 22. Raf1 {[%clk 00:15:25]} {[%emt 00:04:08]} Rc8 {[%clk 00:30:32]}
{[%emt 00:03:22]} 23. Qb1 {[%clk 00:14:42]} {[%emt 00:00:53]} Ne5 {[%clk
00:28:41]} {[%emt 00:02:01]} 24. Ke2 {[%clk 00:13:25]} {[%emt 00:01:27]} Nxd3
{[%clk 00:22:38]} {[%emt 00:06:13]} 25. Nxd3 {[%clk 00:13:29]} {[%emt
00:00:06]} Bxf5 {[%clk 00:21:59]} {[%emt 00:00:49]} 26. Nxc5 {[%clk 00:13:20]}
{[%emt 00:00:20]} Bg4+ {[%clk 00:21:09]} {[%emt 00:00:59]} 27. Kd2 {[%clk
00:12:38]} {[%emt 00:00:52]} Qd6 {[%clk 00:19:18]} {[%emt 00:02:01]} 28. Rf4
{[%clk 00:11:27]} {[%emt 00:01:21]} f5 {[%clk 00:18:12]} {[%emt 00:01:16]} 29.
Nd3 {[%clk 00:10:55]} {[%emt 00:00:42]} hxg3 {[%clk 00:16:51]} {[%emt
00:01:31]} 30. hxg3 {[%clk 00:10:46]} {[%emt 00:00:19]} Rhe8 {[%clk 00:15:58]}
{[%emt 00:01:03]} 31. Nf2 {[%clk 00:06:34]} {[%emt 00:04:22]} Rc4 {[%clk
00:13:48]} {[%emt 00:02:20]} 32. Nxg4 {[%clk 00:05:38]} {[%emt 00:01:06]} fxg4
{[%clk 00:13:47]} {[%emt 00:00:11]} 33. Qd3 {[%clk 00:00:43]} {[%emt 00:05:05]}
Qe5 {[%clk 00:08:46]} {[%emt 00:05:11]} 34. Rxc4 {[%clk 00:00:18]} {[%emt
00:00:35]} dxc4 {[%clk 00:08:53]} {[%emt 00:00:04]} 35. Qd4 {[%clk 00:00:25]}
{[%emt 00:00:02]} Qxg3 {[%clk 00:08:00]} {[%emt 00:01:03]} 36. Rh8 {[%clk
00:00:19]} {[%emt 00:00:16]} Qf2+ {[%clk 00:06:57]} {[%emt 00:01:13]} 37. Kc3
{[%clk 00:00:28]} {[%emt 00:00:01]} Qe1+ {[%clk 00:06:53]} {[%emt 00:00:14]} 38.
Kxc4 {[%clk 00:00:32]} {[%emt 00:00:06]} Qb4+ {[%clk 00:06:55]} {[%emt
00:00:08]} 0-1

[Event "Kwalificatie NJK A Groningen"]
[Site "Hoogkerk, Netherlands"]
[Date "2023.02.18"]
[Round "2.2"]
[White "Van Kuijk, Vadim"]
[Black "Nitrauw, Peter"]
[Result "1-0"]
[TimeControl "55 min. + 10 sec./zet"]
[WhiteElo "2023"]
[BlackElo "1763"]

1. e4 {[%clk 00:55:13]} {[%emt 00:00:07]} e5 {[%clk 00:55:07]} {[%emt
00:00:13]} 2. Nf3 {[%clk 00:55:17]} {[%emt 00:00:05]} Nc6 {[%clk 00:55:11]}
{[%emt 00:00:06]} 3. d4 {[%clk 00:55:25]} {[%emt 00:00:03]} exd4 {[%clk
00:54:56]} {[%emt 00:00:26]} 4. Nxd4 {[%clk 00:55:30]} {[%emt 00:00:05]} Nf6
{[%clk 00:54:27]} {[%emt 00:00:38]} 5. Nxc6 {[%clk 00:55:34]} {[%emt 00:00:06]}
bxc6 {[%clk 00:54:25]} {[%emt 00:00:12]} 6. e5 {[%clk 00:55:40]} {[%emt
00:00:03]} Nd5 {[%clk 00:54:03]} {[%emt 00:00:33]} 7. c4 {[%clk 00:53:50]}
{[%emt 00:02:00]} Nb6 {[%clk 00:47:32]} {[%emt 00:06:41]} 8. b3 {[%clk
00:46:47]} {[%emt 00:07:14]} Bc5 {[%clk 00:45:56]} {[%emt 00:01:44]} 9. Bb2
{[%clk 00:45:02]} {[%emt 00:01:56]} O-O {[%clk 00:45:27]} {[%emt 00:00:39]} 10.
Bd3 {[%clk 00:39:56]} {[%emt 00:05:15]} Re8 {[%clk 00:42:22]} {[%emt 00:03:15]}
11. O-O {[%clk 00:37:53]} {[%emt 00:02:13]} Bf8 {[%clk 00:37:31]} {[%emt
00:05:01]} 12. Nd2 {[%clk 00:31:50]} {[%emt 00:06:14]} d6 {[%clk 00:35:57]}
{[%emt 00:01:45]} 13. exd6 {[%clk 00:27:38]} {[%emt 00:04:21]} cxd6 {[%clk
00:36:00]} {[%emt 00:00:07]} 14. Qf3 {[%clk 00:26:24]} {[%emt 00:01:24]} Qc7
{[%clk 00:35:03]} {[%emt 00:01:07]} 15. Ne4 {[%clk 00:22:30]} {[%emt 00:04:04]}
f6 {[%clk 00:20:17]} {[%emt 00:14:56]} 16. Rae1 {[%clk 00:13:10]} {[%emt
00:09:30]} Nd7 {[%clk 00:18:09]} {[%emt 00:02:19]} 17. Ng5 {[%clk 00:10:31]}
{[%emt 00:02:49]} Ne5 {[%clk 00:11:18]} {[%emt 00:07:00]} 18. Bxh7+ {[%clk
00:10:20]} {[%emt 00:00:20]} Kh8 {[%clk 00:11:15]} {[%emt 00:00:14]} 19. Bxe5
{[%clk 00:08:17]} {[%emt 00:02:13]} Rxe5 {[%clk 00:10:24]} {[%emt 00:01:00]} 20.
Rxe5 {[%clk 00:07:54]} {[%emt 00:00:33]} dxe5 {[%clk 00:09:21]} {[%emt
00:01:14]} 21. Bg6 {[%clk 00:03:55]} {[%emt 00:04:09]} Bb4 {[%clk 00:06:28]}
{[%emt 00:03:03]} 22. Qh5+ {[%clk 00:03:58]} {[%emt 00:00:07]} Kg8 {[%clk
00:06:30]} {[%emt 00:00:07]} 23. Qh7+ {[%clk 00:04:05]} {[%emt 00:00:04]} Kf8
{[%clk 00:06:36]} {[%emt 00:00:05]} 24. Qh8+ {[%clk 00:04:09]} {[%emt
00:00:05]} Ke7 {[%clk 00:06:38]} {[%emt 00:00:08]} 25. Qe8+ {[%clk 00:03:56]}
{[%emt 00:00:22]} Kd6 {[%clk 00:06:35]} {[%emt 00:00:13]} 26. Ne4# {[%clk
00:04:02]} {[%emt 00:00:04]} Kd5 {[%emt 00:00:20]} 1-0

[Event "Kwalificatie NJK A Groningen"]
[Site "Hoogkerk, Netherlands"]
[Date "2023.02.18"]
[Round "2.3"]
[White "Adams, Oscar"]
[Black "Smid, Jelle"]
[Result "1-0"]
[TimeControl "55 min. + 10 sec./zet"]
[WhiteElo "1729"]
[BlackElo "1920"]

1. f4 {[%clk 00:55:18]} {[%emt 00:00:02]} g6 {[%clk 00:55:04]} {[%emt
00:00:15]} 2. Nf3 {[%clk 00:55:19]} {[%emt 00:00:09]} Bg7 {[%clk 00:55:09]}
{[%emt 00:00:06]} 3. c4 {[%clk 00:54:37]} {[%emt 00:00:51]} d6 {[%clk
00:55:05]} {[%emt 00:00:14]} 4. g3 {[%clk 00:54:40]} {[%emt 00:00:08]} e5
{[%clk 00:54:46]} {[%emt 00:00:29]} 5. d3 {[%clk 00:54:40]} {[%emt 00:00:10]}
Nc6 {[%clk 00:52:09]} {[%emt 00:02:47]} 6. Nc3 {[%clk 00:54:33]} {[%emt
00:00:17]} Nge7 {[%clk 00:50:29]} {[%emt 00:01:50]} 7. Bg2 {[%clk 00:54:20]}
{[%emt 00:00:22]} O-O {[%clk 00:50:16]} {[%emt 00:00:23]} 8. O-O {[%clk
00:54:14]} {[%emt 00:00:16]} f5 {[%clk 00:42:15]} {[%emt 00:08:11]} 9. Rb1
{[%clk 00:52:21]} {[%emt 00:02:05]} h6 {[%clk 00:40:21]} {[%emt 00:02:02]} 10.
Nd5 {[%clk 00:48:49]} {[%emt 00:03:42]} Be6 {[%clk 00:38:05]} {[%emt 00:02:27]}
11. e4 {[%clk 00:46:27]} {[%emt 00:02:32]} fxe4 {[%clk 00:34:10]} {[%emt
00:04:05]} 12. dxe4 {[%clk 00:46:23]} {[%emt 00:00:15]} Bg4 {[%clk 00:32:34]}
{[%emt 00:01:44]} 13. Be3 {[%clk 00:42:02]} {[%emt 00:04:31]} Nd4 {[%clk
00:30:31]} {[%emt 00:02:14]} 14. Bxd4 {[%clk 00:39:56]} {[%emt 00:02:16]} exd4
{[%clk 00:30:33]} {[%emt 00:00:08]} 15. Qd3 {[%clk 00:39:34]} {[%emt 00:00:33]}
Bxf3 {[%clk 00:29:14]} {[%emt 00:01:29]} 16. Rxf3 {[%clk 00:39:02]} {[%emt
00:00:41]} c6 {[%clk 00:28:56]} {[%emt 00:00:29]} 17. Nxe7+ {[%clk 00:38:30]}
{[%emt 00:00:41]} Qxe7 {[%clk 00:28:57]} {[%emt 00:00:09]} 18. Re1 {[%clk
00:38:07]} {[%emt 00:00:33]} Rae8 {[%clk 00:27:19]} {[%emt 00:01:48]} 19. e5
{[%clk 00:37:55]} {[%emt 00:00:23]} dxe5 {[%clk 00:26:55]} {[%emt 00:00:37]} 20.
fxe5 {[%clk 00:37:56]} {[%emt 00:00:06]} Rxf3 {[%clk 00:25:13]} {[%emt
00:01:51]} 21. Bxf3 {[%clk 00:37:59]} {[%emt 00:00:07]} Qg5 {[%clk 00:20:09]}
{[%emt 00:05:14]} 22. e6 {[%clk 00:33:26]} {[%emt 00:04:44]} Be5 {[%clk
00:16:46]} {[%emt 00:03:33]} 23. Rxe5 {[%clk 00:33:26]} {[%emt 00:00:10]} 1-0